Workbook

Sheet Uitleg
A1: Voor 2 of meer personen:
A3: Dit spel is haast hetzelfde als Lingo.
A4: Hier krijgt men echter GEEN beginletter.
A5: Typ op Blad1 in de cel G4 een cijfer tussen 1 en 319
A6: 1 en 319 mogen natuurlijk ook
A7: De scheidsrechter kan nu op Blad 2 in de cel E1 even zien welk woord er gebruikt wordt
A8: Dit woord komt ook in de cellen G1 tot K1 te staan.
A9: Ga terug naar Blad 1,de speelster of speler kan nu beginnen
A10: Veel plezier ermee.
A12: Men kan nu ook alleen spelen.
A13: Vul op Blad1 in cel G4 een cijfer in(tussen 1 en 319).
A14: 1 en 319 mogen natuurlijk ook.
A15: Veel plezier ermee.
A17: Nieuwe woorden in kolom A(zelfde maar gehusseld).
A18: Selecteer cel C1 op Blad 2
A19: Zet muis rechterbenedenhoek(plusteken)
A20: Trek naar onder tot rij 319
A21: Selecteer de kolom C1:C319
A22: Plak nu Speciaal deze als waarden in kolom A
A24: Werkwijze:
A25: Typ een 5 letterwoord.
A26: U ziet nu in kolom O dit woord.
A27: In kolom N zijn er twee mogelijkheden
A28: OK wil zeggen dat het woord staat in kolom A van Blad 2
A29: NB wil zeggen dat het woord niet voorkomt in kolom A van Blad 2.
A30: Typ dit woord dan in kolom R van Blad 1 en druk Enter.
A31: De sortering van A naar Z gebeurd.
A32: Dit woord kan U dan een volgende keer gebruiken,maar moet niet meer in kolom R
A34: In de cel S1 staat het te zoeken woord(heb ik natuurlijk wit gemaakt).
A35: In de cel T1 staat een formule die aangeeft hoeveel letters"E" er in het woord staan.

Sheet Blad1
G1: =MID( Blad2!E1, _xlfn.SEQUENCE(, 5), 1 ) -> d | H1: r | I1: a | J1: a | K1: i | L1: =IF( COUNTBLANK( A1:E1 ) > 0, "", IF(_xlfn.CONCAT(A1:E1)=_xlfn.CONCAT(_xlfn.ANCHORARRAY($G$1)),"Snel gevonden","")) ->  | N1: =IF(COUNTBLANK(A1:E1)>0,"",IF(ISNUMBER(MATCH(O1,Blad2!$A$1:$A$500,0)),"OK","NB")) ->  | O1: =_xlfn.CONCAT(A1:E1) ->  | R1: NB | S1: =Blad2!E1 -> draai | T1: =LEN(S1)-LEN(SUBSTITUTE(S1,"e","")) -> 0 | V1: 1 | W1: =V1+30 -> 31 | X1: =W1+30 -> 61 | Y1: 91 | Z1: 121 | AA1: 151 | AB1: 181 | AC1: 211 | AD1: 241 | AE1: 271 | AF1: 301 | AH1: 1 | AI1: =AH1+30 -> 31 | AJ1: =AI1+30 -> 61 | AK1: =AJ1+30 -> 91 | AL1: =AK1+30 -> 121 | AM1: =AL1+30 -> 151 | AN1: =AM1+30 -> 181 | AO1: =AN1+30 -> 211 | AP1: =AO1+30 -> 241 | AQ1: =AP1+30 -> 271 | AR1: =AQ1+30 -> 301
L2: =IF( COUNTBLANK( A2:E2 ) > 0, "", IF(_xlfn.CONCAT(A2:E2)=_xlfn.CONCAT(_xlfn.ANCHORARRAY($G$1)),"Snel gevonden","")) ->  | N2: =IF(COUNTBLANK(A2:E2)>0,"",IF(ISNUMBER(MATCH(O2,Blad2!$A$1:$A$500,0)),"OK","NB")) ->  | O2: =_xlfn.CONCAT(A2:E2) ->  | R2: Deugd | V2: 2 | W2: =V2+30 -> 32 | X2: =W2+30 -> 62 | Y2: 92 | Z2: 122 | AA2: 152 | AB2: 182 | AC2: 212 | AD2: 242 | AE2: 272 | AF2: 302 | AH2: 2 | AI2: =AH2+30 -> 32 | AJ2: 62 | AK2: 92 | AL2: 122 | AM2: 152 | AN2: 182 | AO2: 212 | AP2: 242 | AQ2: 272 | AR2: 302
L3: =IF( COUNTBLANK( A3:E3) > 0, "", IF(_xlfn.CONCAT(A3:E3)=_xlfn.CONCAT(_xlfn.ANCHORARRAY($G$1)),"Heel goed gedaan","")) ->  | N3: =IF(COUNTBLANK(A3:E3)>0,"",IF(ISNUMBER(MATCH(O3,Blad2!$A$1:$A$500,0)),"OK","NB")) ->  | R3: Gelid | V3: 3 | W3: =V3+30 -> 33 | X3: 63 | Y3: 93 | Z3: 123 | AA3: 153 | AB3: 183 | AC3: 213 | AD3: 243 | AE3: 273 | AF3: 303 | AH3: 3 | AI3: =AH3+30 -> 33 | AJ3: 63 | AK3: 93 | AL3: 123 | AM3: 153 | AN3: 183 | AO3: 213 | AP3: 243 | AQ3: 273 | AR3: 303
G4: 70 | L4: =IF( COUNTBLANK( A4:E4) > 0, "", IF(_xlfn.CONCAT(A4:E4)=_xlfn.CONCAT(_xlfn.ANCHORARRAY($G$1)),"Heel goed gedaan","")) ->  | N4: =IF(COUNTBLANK(A4:E4)>0,"",IF(ISNUMBER(MATCH(O4,Blad2!$A$1:$A$500,0)),"OK","NB")) ->  | R4: Ketel | V4: 4 | W4: 34 | X4: 64 | Y4: 94 | Z4: 124 | AA4: 154 | AB4: 184 | AC4: 214 | AD4: 244 | AE4: 274 | AF4: 304 | AH4: 4 | AI4: 34 | AJ4: 64 | AK4: 94 | AL4: 124 | AM4: 154 | AN4: 184 | AO4: 214 | AP4: 244 | AQ4: 274 | AR4: 304
L5: =IF( COUNTBLANK( A5:E5 ) > 0, "", IF(_xlfn.CONCAT(A5:E5)=_xlfn.CONCAT(_xlfn.ANCHORARRAY($G$1)),"Juist op tijd","Woord niet gevonden. Dat was: '" & Blad2!E1 & "'")) ->  | N5: =IF(COUNTBLANK(A5:E5)>0,"",IF(ISNUMBER(MATCH(O5,Blad2!$A$1:$A$500,0)),"OK","NB")) ->  | R5: Peer | V5: 5 | W5: 35 | X5: 65 | Y5: 95 | Z5: 125 | AA5: 155 | AB5: 185 | AC5: 215 | AD5: 245 | AE5: 275 | AF5: 305 | AH5: 5 | AI5: 35 | AJ5: 65 | AK5: 95 | AL5: 125 | AM5: 155 | AN5: 185 | AO5: 215 | AP5: 245 | AQ5: 275 | AR5: 305
R6: Wafel | V6: 6 | W6: 36 | X6: 66 | Y6: 96 | Z6: 126 | AA6: 156 | AB6: 186 | AC6: 216 | AD6: 246 | AE6: 276 | AF6: =AE6+30 -> 306 | AH6: 6 | AI6: 36 | AJ6: 66 | AK6: 96 | AL6: 126 | AM6: 156 | AN6: 186 | AO6: 216 | AP6: 246 | AQ6: 276 | AR6: 306
A7: Met Hoofdletters invullen | V7: 7 | W7: 37 | X7: 67 | Y7: 97 | Z7: 127 | AA7: 157 | AB7: 187 | AC7: 217 | AD7: 247 | AE7: 277 | AF7: =AE7+30 -> 307 | AH7: 7 | AI7: 37 | AJ7: 67 | AK7: 97 | AL7: 127 | AM7: 157 | AN7: 187 | AO7: 217 | AP7: 247 | AQ7: 277 | AR7: 307
A8: Kolom N: | V8: 8 | W8: 38 | X8: 68 | Y8: 98 | Z8: 128 | AA8: 158 | AB8: 188 | AC8: 218 | AD8: 248 | AE8: 278 | AF8: =AE8+30 -> 308 | AH8: 8 | AI8: 38 | AJ8: 68 | AK8: 98 | AL8: 128 | AM8: 158 | AN8: 188 | AO8: 218 | AP8: 248 | AQ8: 278 | AR8: 308
A9: OK wil zeggen woord staat in lijst Blad 2 | V9: 9 | W9: 39 | X9: 69 | Y9: 99 | Z9: 129 | AA9: 159 | AB9: 189 | AC9: 219 | AD9: 249 | AE9: 279 | AF9: =AE9+30 -> 309 | AH9: 9 | AI9: 39 | AJ9: 69 | AK9: 99 | AL9: 129 | AM9: 159 | AN9: 189 | AO9: 219 | AP9: 249 | AQ9: 279 | AR9: 309
A10: NB wil zeggen woord staat niet in lijst Blad 2 | V10: 10 | W10: 40 | X10: 70 | Y10: 100 | Z10: 130 | AA10: 160 | AB10: 190 | AC10: 220 | AD10: 250 | AE10: 280 | AF10: =AE10+30 -> 310 | AH10: 10 | AI10: 40 | AJ10: 70 | AK10: 100 | AL10: 130 | AM10: 160 | AN10: 190 | AO10: 220 | AP10: 250 | AQ10: 280 | AR10: 310
A11: Typ dit dan in kolom R en druk Enter.(mag U altijd gebruiken) | V11: 11 | W11: 41 | X11: 71 | Y11: 101 | Z11: 131 | AA11: 161 | AB11: 191 | AC11: 221 | AD11: 251 | AE11: 281 | AF11: =AE11+30 -> 311 | AH11: 11 | AI11: 41 | AJ11: 71 | AK11: 101 | AL11: 131 | AM11: 161 | AN11: 191 | AO11: 221 | AP11: 251 | AQ11: 281 | AR11: 311
A12: S1 het te zoeken woord(wit gemaakt) | V12: 12 | W12: 42 | X12: 72 | Y12: 102 | Z12: 132 | AA12: 162 | AB12: 192 | AC12: 222 | AD12: 252 | AE12: 282 | AF12: =AE12+30 -> 312 | AH12: 12 | AI12: 42 | AJ12: 72 | AK12: 102 | AL12: 132 | AM12: 162 | AN12: 192 | AO12: 222 | AP12: 252 | AQ12: 282 | AR12: 312
A13: T1 formule hoeveel letters"E" het woord heeft.(0,1 of 2)misschien soms 3, 4 en 5 nooit | V13: 13 | W13: 43 | X13: 73 | Y13: 103 | Z13: 133 | AA13: 163 | AB13: 193 | AC13: 223 | AD13: 253 | AE13: 283 | AF13: =AE13+30 -> 313 | AH13: 13 | AI13: 43 | AJ13: 73 | AK13: 103 | AL13: 133 | AM13: 163 | AN13: 193 | AO13: 223 | AP13: 253 | AQ13: 283 | AR13: 313
A14: Geheel rechts kan U aanduiden welk cijfer U heeft gedaan.(rood of groen) | V14: 14 | W14: 44 | X14: 74 | Y14: 104 | Z14: 134 | AA14: 164 | AB14: 194 | AC14: 224 | AD14: 254 | AE14: 284 | AF14: 314 | AH14: 14 | AI14: 44 | AJ14: 74 | AK14: 104 | AL14: 134 | AM14: 164 | AN14: 194 | AO14: 224 | AP14: 254 | AQ14: 284 | AR14: 314
V15: 15 | W15: 45 | X15: 75 | Y15: 105 | Z15: 135 | AA15: 165 | AB15: 195 | AC15: 225 | AD15: 255 | AE15: 285 | AF15: 315 | AH15: 15 | AI15: 45 | AJ15: 75 | AK15: 105 | AL15: 135 | AM15: 165 | AN15: 195 | AO15: 225 | AP15: 255 | AQ15: 285 | AR15: 315
V16: 16 | W16: 46 | X16: 76 | Y16: 106 | Z16: 136 | AA16: 166 | AB16: 196 | AC16: 226 | AD16: 256 | AE16: 286 | AF16: 316 | AH16: 16 | AI16: 46 | AJ16: 76 | AK16: 106 | AL16: 136 | AM16: 166 | AN16: 196 | AO16: 226 | AP16: 256 | AQ16: 286 | AR16: 316
V17: 17 | W17: 47 | X17: 77 | Y17: 107 | Z17: 137 | AA17: 167 | AB17: 197 | AC17: 227 | AD17: 257 | AE17: 287 | AF17: 317 | AH17: 17 | AI17: 47 | AJ17: 77 | AK17: 107 | AL17: 137 | AM17: 167 | AN17: 197 | AO17: 227 | AP17: 257 | AQ17: 287 | AR17: 317
V18: 18 | W18: 48 | X18: 78 | Y18: 108 | Z18: 138 | AA18: 168 | AB18: 198 | AC18: 228 | AD18: 258 | AE18: 288 | AF18: 318 | AH18: 18 | AI18: 48 | AJ18: 78 | AK18: 108 | AL18: 138 | AM18: 168 | AN18: 198 | AO18: 228 | AP18: 258 | AQ18: 288 | AR18: 318
V19: 19 | W19: 49 | X19: 79 | Y19: 109 | Z19: 139 | AA19: 169 | AB19: 199 | AC19: 229 | AD19: 259 | AE19: 289 | AF19: 319 | AH19: 19 | AI19: 49 | AJ19: 79 | AK19: 109 | AL19: 139 | AM19: 169 | AN19: 199 | AO19: 229 | AP19: 259 | AQ19: 289 | AR19: 319
V20: 20 | W20: 50 | X20: 80 | Y20: 110 | Z20: 140 | AA20: 170 | AB20: 200 | AC20: 230 | AD20: 260 | AE20: 290 | AH20: 20 | AI20: 50 | AJ20: 80 | AK20: 110 | AL20: 140 | AM20: 170 | AN20: 200 | AO20: 230 | AP20: 260 | AQ20: 290
V21: 21 | W21: 51 | X21: 81 | Y21: 111 | Z21: 141 | AA21: 171 | AB21: 201 | AC21: 231 | AD21: 261 | AE21: 291 | AH21: 21 | AI21: 51 | AJ21: 81 | AK21: 111 | AL21: 141 | AM21: 171 | AN21: 201 | AO21: 231 | AP21: 261 | AQ21: 291
V22: 22 | W22: 52 | X22: 82 | Y22: 112 | Z22: 142 | AA22: 172 | AB22: 202 | AC22: 232 | AD22: 262 | AE22: 292 | AH22: 22 | AI22: 52 | AJ22: 82 | AK22: 112 | AL22: 142 | AM22: 172 | AN22: 202 | AO22: 232 | AP22: 262 | AQ22: 292
V23: 23 | W23: 53 | X23: 83 | Y23: 113 | Z23: 143 | AA23: 173 | AB23: 203 | AC23: 233 | AD23: 263 | AE23: 293 | AH23: 23 | AI23: 53 | AJ23: 83 | AK23: 113 | AL23: 143 | AM23: 173 | AN23: 203 | AO23: 233 | AP23: 263 | AQ23: 293
V24: 24 | W24: 54 | X24: 84 | Y24: 114 | Z24: 144 | AA24: 174 | AB24: 204 | AC24: 234 | AD24: 264 | AE24: 294 | AH24: 24 | AI24: 54 | AJ24: 84 | AK24: 114 | AL24: 144 | AM24: 174 | AN24: 204 | AO24: 234 | AP24: 264 | AQ24: 294
V25: 25 | W25: 55 | X25: 85 | Y25: 115 | Z25: 145 | AA25: 175 | AB25: 205 | AC25: 235 | AD25: 265 | AE25: 295 | AH25: 25 | AI25: 55 | AJ25: 85 | AK25: 115 | AL25: 145 | AM25: 175 | AN25: 205 | AO25: 235 | AP25: 265 | AQ25: 295
V26: 26 | W26: 56 | X26: 86 | Y26: 116 | Z26: 146 | AA26: 176 | AB26: 206 | AC26: 236 | AD26: 266 | AE26: 296 | AH26: 26 | AI26: 56 | AJ26: 86 | AK26: 116 | AL26: 146 | AM26: 176 | AN26: 206 | AO26: 236 | AP26: 266 | AQ26: 296
V27: 27 | W27: 57 | X27: 87 | Y27: 117 | Z27: 147 | AA27: 177 | AB27: 207 | AC27: 237 | AD27: 267 | AE27: 297 | AH27: 27 | AI27: 57 | AJ27: 87 | AK27: 117 | AL27: 147 | AM27: 177 | AN27: 207 | AO27: 237 | AP27: 267 | AQ27: 297
V28: 28 | W28: 58 | X28: 88 | Y28: 118 | Z28: 148 | AA28: 178 | AB28: 208 | AC28: 238 | AD28: 268 | AE28: 298 | AH28: 28 | AI28: 58 | AJ28: 88 | AK28: 118 | AL28: 148 | AM28: 178 | AN28: 208 | AO28: 238 | AP28: 268 | AQ28: 298
V29: 29 | W29: 59 | X29: 89 | Y29: 119 | Z29: 149 | AA29: 179 | AB29: 209 | AC29: 239 | AD29: 269 | AE29: 299 | AH29: 29 | AI29: 59 | AJ29: 89 | AK29: 119 | AL29: 149 | AM29: =AL29+30 -> 179 | AN29: 209 | AO29: 239 | AP29: 269 | AQ29: 299
V30: 30 | W30: 60 | X30: 90 | Y30: 120 | Z30: 150 | AA30: 180 | AB30: 210 | AC30: 240 | AD30: 270 | AE30: 300 | AH30: 30 | AI30: 60 | AJ30: 90 | AK30: 120 | AL30: 150 | AM30: 180 | AN30: 210 | AO30: 240 | AP30: 270 | AQ30: 300
Z32: ROOD | AL32: GROEN

Sheet Blad2
A1: markt | C1: =INDEX($A:$A,RANDBETWEEN(1,COUNTA($A:$A)),1) -> groen | E1: =INDEX($A:$A,Blad1!G4) -> draai
A2: molen
A3: veins
A4: ruzie
A5: deden
A6: zesde
A7: tafel
A8: prins
A9: vieze
A10: delen
A11: kreet
A12: talen
A13: trein
A14: veger
A15: trouw
A16: rokje
A17: jeugd
A18: model
A19: veler
A20: uiver
A21: radar
A22: duwen
A23: dozen
A24: stand
A25: zeven
A26: regen
A27: meter
A28: yacht
A29: weten
A30: drugs
A31: dwing
A32: penis
A33: beeld
A34: teken
A35: toets
A36: kraal
A37: wonen
A38: plein
A39: blond
A40: beden
A41: naden
A42: weren
A43: wagen
A44: brand
A45: stook
A46: reden
A47: draaf
A48: groen
A49: zware
A50: zeeen
A51: fauna
A52: nemen
A53: elven
A54: dwars
A55: teler
A56: typen
A57: pixel
A58: leden
A59: orden
A60: haken
A61: leven
A62: quark
A63: sfeer
A64: wezen
A65: jicht
A66: lezer
A67: lunch
A68: snoep
A69: immer
A70: draai
A71: afwas
A72: laden
A73: staan
A74: xenon
A75: basis
A76: broek
A77: radio
A78: beren
A79: zaden
A80: loper
A81: friet
A82: jagen
A83: kroon
A84: rente
A85: jabot
A86: races
A87: falen
A88: effen
A89: gaven
A90: datum
A91: media
A92: wraak
A93: pizza
A94: weken
A95: email
A96: kunst
A97: haren
A98: enkel
A99: telen
A100: huren
A101: roede
A102: clown
A103: cavia
A104: maren
A105: degen
A106: vaten
A107: laten
A108: legen
A109: vegen
A110: neder
A111: deren
A112: hamer
A113: steer
A114: fruit
A115: bomen
A116: pasta
A117: genre
A118: lepel
A119: files
A120: oppas
A121: graal
A122: tenen
A123: cacao
A124: kegel
A125: vries
A126: breed
A127: zweef
A128: aldus
A129: noord
A130: vogel
A131: taboe
A132: ophef
A133: alarm
A134: vloer
A135: daden
A136: feeen
A137: roken
A138: deler
A139: lager
A140: samen
A141: krans
A142: jager
A143: reken
A144: serie
A145: zever
A146: warme
A147: cello
A148: spijs
A149: hobby
A150: kleur
A151: buren
A152: derde
A153: kaart
A154: lagen
A155: kater
A156: veren
A157: china
A158: geeuw
A159: zenuw
A160: klopt
A161: zicht
A162: boter
A163: regio
A164: jaden
A165: paard
A166: licht
A167: inlog
A168: strak
A169: super
A170: smeed
A171: woord
A172: drank
A173: zomer
A174: breuk
A175: kolen
A176: duits
A177: quote
A178: icoon
A179: woest
A180: nieuw
A181: dames
A182: velen
A183: panda
A184: ieder
A185: blind
A186: druif
A187: dreun
A188: vraag
A189: forel
A190: water
A191: vader
A192: krent
A193: koken
A194: flora
A195: deken
A196: hagel
A197: mazen
A198: krant
A199: leger
A200: zagen
... 119 more rows
